bitfinex/quotes_ETHUSD_20251026
["timestamp","ask_amount","ask_price","bid_price","bid_amount"]
[1761474192972,0.53970742,3980.8,3980.7,0.2373]
[1761474193171,0.53970742,3980.8,3980.7,2.74942098]
[1761474193172,0.001,3980.8,3980.7,2.74942098]
[1761474193378,0.001,3980.8,3980.7,3.75005998]
[1761474194003,0.001,3980.8,3980.7,3.87565998]
[1761474197711,0.50688,3980.7,3980.2,2.971788]
[1761474197873,0.50688,3980.7,3980.4,0.2373]
[1761474198280,0.50688,3980.7,3980.5,0.4594]
[1761474200999,0.50688,3980.7,3980.4,0.2373]
[1761474201201,0.63248,3980.5,3980.4,0.2373]
[1761474201497,0.63248,3980.5,3980.4,0.6967]
[1761474201678,0.50688,3980.4,3980.1,0.2373]
[1761474202006,0.50688,3980.2,3980.1,0.2373]
[1761474202205,3.80048,3980.2,3980.1,0.2373]
[1761474202372,3.80048,3980.2,3980.1,0.6967]
[1761474205284,3.2936,3980.2,3980.1,0.6967]
[1761474206684,3.80048,3980.2,3980.1,0.6967]
[1761474210412,3.80048,3980.2,3980.1,0.6987]
[1761474216885,3.67488,3980.3,3980.2,2.51238121]
[1761474217609,3.67488,3980.3,3980.2,2.97178121]
[1761474218385,3.67488,3980.3,3980.2,0.4594]
[1761474220014,3.67488,3980.3,3980.1,0.2393]
[1761474220323,3.67488,3980.3,3980.1,0.6698]
[1761474221021,3.67488,3980.3,3980.2,0.4305]
[1761474225330,3.67488,3980.3,3980.1,0.2393]
[1761474225548,3.67488,3980.3,3980.1,0.002]
[1761474225837,3.67488,3980.3,3980.1,0.4325]
[1761474226533,0.63248,3980.2,3980.1,0.002]
[1761474226949,2.567728,3980.2,3980.1,0.002]
[1761474227246,5.7315702,3980.2,3980.1,0.002]
[1761474230742,5.6185702,3980.2,3980.1,0.002]
[1761474230905,3.10613364,3980.2,3980.1,0.002]
[1761474231215,5.6185702,3980.2,3980.1,0.002]
[1761474232809,3.10613364,3980.2,3980.1,0.002]
[1761474233013,2.567728,3980.2,3980.1,0.002]
[1761474233215,3.10596257,3980.2,3980.1,0.002]
[1761474233709,2.567728,3980.2,3980.1,0.002]
[1761474234612,1.012528,3980.2,3980.1,0.002]
[1761474234803,2.567728,3980.2,3980.1,0.002]
[1761474235008,0.001,3980.8,3980.2,2.51238281]
[1761474235239,3.167,3980.7,3980.3,0.4305]
[1761474235450,0.50688,3980.6,3980.3,0.4305]
[1761474236031,3.167,3980.7,3980.3,0.4305]
[1761474236352,0.50688,3980.6,3980.1,0.233]
[1761474236539,0.50688,3980.6,3980.2,0.4305]
[1761474237044,0.50688,3980.6,3980.2,2.94292714]
[1761474237418,0.50688,3980.6,3980.3,0.4305]
[1761474237947,0.50688,3980.6,3980.3,2.94287192]
[1761474238121,0.50688,3980.6,3980.4,0.4305]
[1761474239233,0.50688,3980.6,3980.4,2.94280216]
[1761474239594,0.50688,3980.6,3980.5,2.9427472]
[1761474240481,0.50688,3980.6,3980.1,0.233]
[1761474240801,0.50688,3980.6,3980.2,0.4305]
[1761474241252,0.50688,3980.6,3980.2,2.94291333]
[1761474241453,0.50688,3980.6,3980.4,2.51230263]
[1761474241854,0.50688,3980.6,3980.5,0.4535]
[1761474242354,0.50688,3980.6,3980.3,2.51236901]
[1761474242577,0.50688,3980.6,3980.3,2.96586901]
[1761474242779,0.50688,3980.6,3980.4,0.4535]
[1761474244002,0.50688,3980.6,3980.1,0.233]
[1761474244295,0.50688,3980.6,3980.1,2.51444896]
[1761474244457,0.50688,3980.6,3980.2,2.96591826]
[1761474245176,0.63248,3980.6,3980.2,2.96591826]
[1761474245372,0.63248,3980.6,3980.3,2.5123681]
[1761474245572,0.63248,3980.6,3980.2,0.4535]
[1761474245774,0.63248,3980.6,3980.2,2.96589177]
[1761474245979,0.63248,3980.6,3980.3,2.51237015]
[1761474246178,0.63248,3980.6,3980.3,2.96587015]
[1761474246589,0.63248,3980.6,3980.5,2.5122472]
[1761474246988,0.63248,3980.6,3980.5,2.9657472]
[1761474247382,0.63248,3980.6,3980.5,0.4535]
[1761474247609,0.63248,3980.6,3980.5,2.9657472]
[1761474249188,0.63248,3980.6,3980.5,0.4535]
[1761474250537,0.63248,3980.6,3980.3,2.5123665]
[1761474250868,0.63248,3980.6,3980.1,0.4495]
[1761474251068,0.63248,3980.6,3980.2,2.95989034]
[1761474251376,0.63248,3980.6,3980.3,2.51237343]
[1761474251590,0.63248,3980.6,3980.3,2.95987343]
[1761474251787,0.63248,3980.6,3980.2,0.2209]
[1761474252092,0.63248,3980.6,3980.3,0.4475]
[1761474252474,0.63248,3980.6,3980.2,0.2209]
[1761474253795,0.50688,3980.2,3980.1,0.002]
[1761474253999,3.67388,3980.2,3979.9,2.96012594]
[1761474254190,3.67388,3980.2,3980.0,0.4475]
[1761474254572,3.67388,3980.2,3980.0,2.96005208]
[1761474254978,3.67388,3980.2,3980.1,0.4475]
[1761474255694,3.67388,3980.2,3979.9,2.96010708]
[1761474255916,3.67388,3980.2,3980.0,2.51255948]
[1761474256071,3.67388,3980.2,3980.0,2.96005948]
[1761474256271,3.67388,3980.2,3980.1,0.4475]
[1761474258013,3.67388,3980.2,3980.1,2.95999968]
[1761474259475,0.001,3980.8,3980.1,4.16992089]
[1761474259679,0.001,3980.8,3980.7,2.51212098]
[1761474260305,0.001,3980.8,3980.7,2.95962098]
[1761474260510,0.001,3980.8,3980.7,3.71344001]
[1761474264912,0.001,3980.8,3980.7,6.87944001]
[1761474265078,0.001,3980.8,3980.7,7.81860441]
[1761474269518,0.001,3980.8,3980.7,7.94420441]
[1761474272788,0.001,3980.8,3980.7,4.33070441]
[1761474273021,0.001,3980.8,3980.7,2.63772098]
[1761474273227,0.001,3980.8,3980.7,2.73823574]
[1761474273423,0.001,3980.8,3980.7,3.18573574]
[1761474273726,0.001,3980.8,3980.7,3.08522098]
[1761474274124,0.001,3980.8,3980.7,2.63772098]
[1761474275527,0.001,3980.8,3980.7,3.08522098]
[1761474277036,0.001,3980.8,3980.7,3.96156348]
[1761474277328,0.001,3980.8,3980.7,3.08522098]
[1761474278628,0.001,3980.8,3980.7,2.63772098]
[1761474279127,0.001,3980.8,3980.7,2.51212098]
[1761474280296,0.001,3980.8,3980.7,2.96202098]
[1761474286436,0.001,3980.8,3980.7,2.51212098]
[1761474291337,0.50688,3980.7,3980.6,2.51218409]
[1761474291520,0.50688,3980.7,3980.1,0.002]
[1761474291521,0.50688,3980.7,3980.5,2.51223531]
[1761474291725,0.61988,3980.7,3980.5,2.51223531]
[1761474291955,0.61988,3980.7,3980.6,2.51218409]
[1761474292258,0.50688,3980.7,3980.6,2.51218409]
[1761474294948,0.50788,3980.7,3980.6,2.51218409]
[1761474296043,0.62088,3980.7,3980.4,2.51225978]
[1761474296574,0.62088,3980.7,3980.5,2.51223237]
[1761474298078,0.62088,3980.7,3980.2,0.1256]
[1761474298079,0.50788,3980.7,3980.2,0.1256]
[1761474298377,0.50788,3980.7,3980.1,0.002]
[1761474298378,4.57451656,3980.2,3980.1,0.002]
[1761474298554,5.42135925,3980.2,3980.1,0.002]
[1761474298891,5.53435925,3980.2,3980.1,0.002]
[1761474299181,6.07301195,3980.2,3980.1,0.002]
[1761474299344,5.53435925,3980.2,3980.1,0.002]
[1761474299940,6.0726587,3980.2,3980.1,0.002]
[1761474303368,5.53435925,3980.2,3980.1,0.002]
[1761474308284,8.70035925,3980.2,3980.1,0.002]
[1761474308786,8.58735925,3980.2,3980.1,0.002]
[1761474309552,5.42135925,3980.2,3980.1,0.002]
[1761474309757,8.58735925,3980.2,3980.1,0.002]
[1761474313010,8.58835925,3980.2,3980.1,0.002]
[1761474314450,6.31191656,3980.2,3980.1,0.002]
[1761474316014,6.42491656,3980.2,3980.1,0.002]
[1761474316684,7.86711656,3980.2,3980.1,0.002]
[1761474316886,7.85451656,3980.2,3980.1,0.002]
[1761474321438,8.39208018,3980.2,3980.1,0.002]
[1761474323045,9.3795757,3980.2,3980.1,0.002]
[1761474325038,9.4925757,3980.2,3980.1,0.002]
[1761474326548,9.3795757,3980.2,3980.1,0.002]
[1761474326750,6.2135757,3980.2,3980.1,0.002]
[1761474326943,9.5051757,3980.2,3980.1,0.002]
[1761474332358,9.6181757,3980.2,3980.1,0.002]
[1761474332561,10.29020559,3980.2,3980.1,0.002]
[1761474334022,10.39077392,3980.2,3980.1,0.002]
[1761474335836,9.71874403,3980.2,3980.1,0.002]
[1761474337658,9.18118041,3980.2,3980.1,0.002]
[1761474337865,9.72082257,3980.2,3980.1,0.002]
[1761474338265,8.25978601,3980.2,3977.4,0.2267]
[1761474338466,4.57596923,3977.9,3977.8,0.46952507]
[1761474338767,5.23308,3977.9,3977.8,0.00582507]
[1761474338965,5.70260507,3977.9,3977.8,0.00582507]
[1761474339270,8.2164943,3977.9,3977.8,0.00582507]
[1761474339467,8.2164943,3977.9,3977.8,0.46952507]
[1761474339667,5.70260507,3977.9,3977.8,0.46952507]
[1761474342185,2.53160507,3977.9,3977.8,0.46952507]
[1761474342347,4.14740507,3977.9,3977.8,0.46952507]
[1761474342549,3.171,3977.9,3977.8,0.46952507]
[1761474342755,3.171,3977.9,3977.8,2.9834775]
[1761474343056,2.51332841,3978.8,3977.8,1.01928063]
[1761474343261,3.171,3978.7,3977.9,0.4637]
[1761474343457,1.5552,3978.5,3977.9,0.4637]
[1761474343679,0.50688,3978.4,3977.9,0.4637]
[1761474343884,0.50688,3978.2,3977.9,0.4637]
[1761474345177,0.50688,3978.2,3978.1,0.2304]
[1761474345567,0.50688,3978.2,3978.1,0.6941]
[1761474348300,0.63248,3978.2,3978.1,0.6941]
[1761474349363,0.63248,3978.2,3978.1,0.6961]
[1761474359121,0.1256,3978.2,3978.1,3.53144412]
[1761474359613,0.63248,3978.2,3978.1,3.53144412]
[1761474360018,0.63248,3978.2,3978.1,1.01768127]
[1761474360198,0.63248,3978.2,3978.1,0.6961]
[1761474361337,0.63248,3978.2,3978.1,3.20986285]
[1761474363721,0.50688,3978.2,3978.1,3.23500047]
[1761474364022,0.50688,3978.2,3978.1,3.20986285]
[1761474364725,0.50688,3978.9,3978.6,2.51338991]
[1761474365032,0.50688,3979.0,3978.7,2.51338138]
[1761474365521,0.50688,3979.0,3978.8,0.4379]
[1761474366021,0.1256,3978.9,3978.8,0.4379]
[1761474366619,0.1256,3978.9,3978.8,2.95122059]
[1761474366927,0.1256,3978.9,3978.8,0.4379]
[1761474369712,0.001,3979.2,3979.1,2.51313111]
[1761474370011,0.001,3979.2,3979.1,2.72863111]
[1761474370207,0.001,3979.2,3979.1,0.6661]
[1761474371143,0.001,3979.2,3979.1,3.17923111]
[1761474375724,0.001,3979.2,3979.1,6.35123111]
[1761474375918,0.001,3979.2,3979.1,7.77406906]
[1761474376323,0.001,3979.2,3979.1,6.15726906]
[1761474376541,0.001,3979.2,3979.1,9.33226906]
[1761474379014,0.001,3979.2,3979.1,9.33116906]
[1761474379425,0.001,3979.2,3979.1,9.33016906]
[1761474379719,0.001,3979.2,3979.1,9.45576906]
[1761474381041,0.001,3979.2,3979.1,6.28176906]
[1761474381244,0.001,3979.2,3979.1,9.45576906]
[1761474385864,0.001,3979.2,3979.1,6.28176906]
[1761474386259,0.001,3979.2,3979.1,9.45476906]
[1761474388848,0.001,3979.2,3979.1,4.06156906]
[1761474389149,0.001,3979.2,3979.1,3.02001111]
[1761474389461,0.001,3979.2,3979.1,3.47061111]
[1761474389660,0.001,3979.2,3979.1,6.64361111]
[1761474389844,0.001,3979.2,3979.1,6.85911111]
[1761474394077,0.001,3979.2,3979.1,6.35223111]
[1761474394373,0.001,3979.2,3979.1,7.28084906]
[1761474398857,0.001,3979.2,3979.1,7.27884906]
[1761474399947,0.001,3979.2,3979.1,4.10784906]
[1761474400155,0.001,3979.2,3979.1,7.27884906]
[1761474400682,0.001,3979.2,3979.1,8.83404906]
[1761474402403,0.001,3979.2,3979.1,8.83604906]
[1761474406589,0.001,3979.2,3979.1,4.99894906]
[1761474406807,0.001,3979.2,3979.1,8.16894906]
[1761474409018,0.001,3979.2,3979.1,4.99894906]
[1761474409220,0.001,3979.2,3979.1,8.16794906]
[1761474409787,0.001,3979.2,3979.1,8.62774906]
[1761474411584,0.001,3979.2,3979.1,8.16794906]
[1761474411791,0.001,3979.2,3979.1,8.16694906]
[1761474414226,0.001,3979.2,3979.1,8.62674906]
[1761474414820,0.001,3979.2,3979.1,8.16694906]
[1761474416711,0.001,3979.2,3979.1,8.16594906]
[1761474417336,0.001,3979.2,3979.1,7.23733111]
[1761474418531,0.001,3979.2,3979.1,4.07033111]
[1761474418732,0.001,3979.2,3979.1,7.23733111]
[1761474421225,0.001,3979.2,3979.1,4.07033111]
[1761474421429,0.001,3979.2,3979.1,7.23733111]
[1761474422043,0.001,3979.2,3979.1,2.51513111]
[1761474422240,0.001,3979.2,3979.1,5.68213111]
[1761474422949,0.001,3979.2,3979.1,2.51513111]
[1761474423151,0.60688,3979.2,3979.1,0.002]
[1761474423440,0.73248,3979.2,3979.1,2.51513111]
[1761474428049,0.73248,3979.2,3979.1,0.002]
[1761474428717,1.05702049,3979.2,3979.1,0.002]
[1761474430852,0.73248,3979.2,3979.1,0.002]
[1761474436976,3.24554795,3979.2,3979.1,0.002]
[1761474437954,6.41254795,3979.2,3979.1,0.002]
[1761474438969,7.96774795,3979.2,3979.1,0.002]
[1761474439170,8.60501363,3979.2,3979.1,0.002]
[1761474439476,9.71680993,3979.2,3979.1,0.002]
[1761474440264,9.18013458,3979.2,3979.1,0.002]
[1761474442341,9.05453458,3979.2,3979.1,0.002]
[1761474447476,9.5908077,3979.2,3979.1,0.002]
[1761474452350,9.7164077,3979.2,3979.1,0.002]
[1761474453370,10.38748413,3979.2,3979.1,0.002]
[1761474455258,9.7164077,3979.2,3979.1,0.002]
[1761474455461,3.02020059,3978.8,3978.7,0.002]
[1761474455762,8.86281377,3978.8,3978.7,0.002]
[1761474455979,9.07541377,3978.8,3978.7,0.002]
[1761474456165,9.17602991,3978.8,3978.7,0.002]
[1761474459660,8.96342991,3978.8,3978.7,0.002]
[1761474459878,9.17602991,3978.8,3978.7,0.002]
[1761474461268,5.79542991,3978.8,3978.7,0.002]
[1761474461471,8.96342991,3978.8,3978.7,0.002]
[1761474462193,9.17602991,3978.8,3978.7,0.002]
[1761474462789,6.00802991,3978.8,3978.7,0.002]
[1761474462969,8.96342991,3978.8,3978.7,0.002]
[1761474467677,8.96342991,3978.8,3978.7,0.4551]
[1761474468502,5.48568926,3978.8,3978.7,0.002]
[1761474468703,5.48568926,3978.8,3978.7,0.4551]
[1761474468906,5.99256926,3978.8,3978.7,0.4551]
[1761474471517,1.16875312,3978.8,3978.7,0.4551]
[1761474471715,3.80048,3978.8,3978.7,0.4551]
[1761474476924,0.63248,3978.8,3978.7,0.75216053]
[1761474477126,0.63248,3978.8,3978.7,3.26554429]
[1761474479752,0.63248,3978.8,3978.7,0.75216053]
[1761474479895,0.63248,3978.8,3978.7,0.4551]
[1761474483033,0.63248,3978.8,3978.7,0.002]
[1761474483206,0.63248,3978.8,3978.7,0.4611]
[1761474486108,0.63248,3978.8,3978.7,2.97448376]
[1761474487224,0.63248,3978.8,3978.7,2.51538376]
[1761474487433,0.63248,3978.8,3978.7,3.47756922]
[1761474487604,0.001,3979.1,3979.0,2.51319426]
[1761474487937,0.63348,3979.1,3979.0,2.51319426]
[1761474488136,0.63348,3979.1,3979.0,2.97229426]
[1761474488335,0.1266,3979.1,3979.0,2.97229426]
[1761474488653,0.1266,3979.1,3979.0,3.57136287]
[1761474488654,0.001,3979.1,3979.0,3.57136287]
[1761474492933,0.001,3979.1,3979.0,3.11226287]
[1761474493138,0.001,3979.1,3979.0,3.56006287]
[1761474500152,0.001,3979.1,3979.0,3.11226287]
[1761474500451,0.001,3979.1,3979.0,3.56006287]
[1761474501043,0.001,3979.1,3979.0,3.11226287]
[1761474501826,0.001,3979.1,3979.0,2.51319426]
[1761474502758,0.001,3979.1,3979.0,2.96099426]
[1761474502961,0.50788,3979.1,3979.0,2.96099426]
[1761474505839,0.50788,3979.1,3979.0,2.96299426]
[1761474508057,0.50788,3979.1,3979.0,2.51519426]
[1761474509666,0.50788,3979.1,3979.0,2.96299426]
[1761474511042,0.50788,3979.1,3979.0,2.51519426]
[1761474512461,0.50788,3979.1,3979.0,2.96299426]
[1761474512982,0.50788,3979.1,3979.0,3.44249287]
[1761474513185,0.50788,3979.1,3979.0,2.51519426]
[1761474514262,0.50788,3979.1,3979.0,2.96299426]
[1761474516582,0.50788,3979.1,3979.0,2.51519426]
[1761474516788,0.50788,3979.1,3979.0,2.96299426]
[1761474518549,0.50788,3979.1,3979.0,2.96019426]
[1761474519584,0.50788,3979.1,3979.0,3.88721287]
[1761474520300,0.50788,3979.1,3979.0,2.96019426]
[1761474524609,0.50788,3979.1,3979.0,2.9853262]
[1761474524979,0.50788,3979.1,3979.0,2.96019426]
[1761474527722,0.50788,3979.1,3979.0,5.68019426]
[1761474527916,0.50788,3979.1,3979.0,6.12519426]
[1761474528085,0.50788,3979.1,3979.0,7.05211287]
[1761474528685,0.001,3979.1,3979.0,7.05211287]
[1761474528909,0.001,3979.1,3979.0,7.17771287]
[1761474529920,0.001,3979.1,3979.0,8.73291287]
[1761474530095,0.001,3979.1,3979.0,9.24079287]
[1761474546934,0.001,3979.1,3979.0,8.73291287]
[1761474548928,0.001,3979.1,3979.0,5.56791287]
[1761474549114,0.001,3979.1,3979.0,8.60631287]
[1761474555027,0.001,3979.1,3979.0,8.70684607]
[1761474559068,0.001,3979.1,3979.0,8.83244607]
[1761474562063,0.001,3979.1,3979.0,5.22344607]
[1761474562268,0.001,3979.1,3979.0,8.16131287]
[1761474567152,0.001,3979.1,3979.0,8.61301287]
[1761474572153,0.001,3979.1,3979.0,8.73861287]
[1761474572367,0.001,3979.1,3979.0,8.83914632]
[1761474573061,0.001,3979.1,3979.0,5.67514632]
[1761474573249,0.001,3979.1,3979.0,8.83914632]
[1761474575975,0.001,3979.1,3979.0,8.83814632]
[1761474580447,0.001,3979.5,3979.4,2.51294164]
[1761474580448,1e-08,3979.5,3979.4,2.51294164]
[1761474580675,1e-08,3979.5,3979.4,6.69878749]
[1761474580859,1e-08,3979.5,3979.4,7.10565808]
[1761474582191,1e-08,3979.5,3979.4,6.45965808]
[1761474583995,1e-08,3979.5,3979.4,6.89165808]
[1761474585074,1e-08,3979.5,3979.4,8.44685808]
[1761474585490,1e-08,3979.5,3979.4,8.54738117]
[1761474594338,1e-08,3979.5,3979.4,4.95238117]
[1761474594491,1e-08,3979.5,3979.4,8.11538117]
[1761474594894,1e-08,3979.5,3979.4,8.54738117]
[1761474595089,1e-08,3979.5,3979.4,8.11538117]
[1761474595523,1e-08,3979.5,3979.4,8.54738117]
[1761474595835,1e-08,3979.5,3979.4,8.11538117]
[1761474596734,1e-08,3979.5,3979.4,8.54738117]
[1761474598355,1e-08,3979.5,3979.4,10.34744473]
[1761474600241,1e-08,3979.5,3979.4,6.75244473]
[1761474600441,1e-08,3979.5,3979.4,9.91544473]
[1761474600645,1e-08,3979.5,3979.4,6.75244473]
[1761474601052,1e-08,3979.5,3979.4,2.51294164]
[1761474601053,0.60608001,3979.5,3979.4,2.51294164]
[1761474603345,0.50688001,3979.5,3979.4,2.53807105]
[1761474604014,0.60608001,3979.5,3979.4,2.51294164]
[1761474604266,0.09920001,3979.5,3979.4,2.51294164]
[1761474604863,0.09920001,3979.5,3979.4,5.67594164]
[1761474606526,1e-08,3979.5,3979.4,5.67594164]
[1761474606766,1e-08,3979.5,3979.4,5.67794164]
[1761474607152,1e-08,3979.5,3979.4,8.05223838]
[1761474607825,0.09920001,3979.5,3979.4,8.05223838]
[1761474608025,0.09920001,3979.5,3979.4,7.23314164]
[1761474608263,1e-08,3979.5,3979.4,7.23314164]
[1761474609540,1e-08,3979.5,3979.4,4.07014164]
[1761474609739,1e-08,3979.5,3979.4,7.25827105]
[1761474609970,1e-08,3979.5,3979.4,7.23314164]
[1761474610460,1e-08,3979.5,3979.4,8.27497838]
[1761474611139,1e-08,3979.5,3979.4,8.40057838]
[1761474615598,1e-08,3979.5,3979.4,5.23757838]
[1761474615760,0.09920001,3979.5,3979.4,8.40057838]
[1761474618479,1e-08,3979.5,3979.4,8.40057838]
[1761474619700,1e-08,3979.5,3979.4,5.23757838]
[1761474619907,0.09920001,3979.5,3979.4,8.40057838]
[1761474620776,0.09920001,3979.5,3979.4,6.84537838]
[1761474621462,1e-08,3979.5,3979.4,6.84537838]
[1761474625974,0.09920001,3979.5,3979.4,6.84537838]
[1761474627089,0.60608001,3979.5,3979.4,0.002]
[1761474627481,1.11296001,3979.5,3979.4,2.51494164]
[1761474630504,0.60608001,3979.5,3979.4,2.51494164]
[1761474639887,0.50688001,3979.5,3979.4,2.51494164]
[1761474640714,0.60608001,3979.5,3979.4,2.51494164]
[1761474644227,0.50688001,3979.5,3979.4,2.51494164]
[1761474646621,0.60608001,3979.5,3979.4,2.51494164]
[1761474648483,0.60608001,3979.5,3979.4,0.002]
[1761474649427,0.60608001,3979.5,3979.4,2.51494164]
[1761474650192,0.60608001,3979.5,3979.4,0.002]
[1761474655303,0.60608001,3979.5,3979.4,2.51494164]
[1761474656130,0.60608001,3979.5,3979.4,0.002]
[1761474659164,0.98308801,3979.5,3979.4,0.002]
[1761474660354,1.10868801,3979.5,3979.4,0.002]
[1761474667264,1.00948801,3979.5,3979.4,0.002]
[1761474667429,1.10868801,3979.5,3979.4,0.002]
[1761474673460,3.62156651,3979.5,3979.4,0.002]
[1761474673782,0.88388801,3979.5,3979.4,0.002]
[1761474673958,3.79548001,3979.5,3979.4,0.002]
[1761474675890,3.89468001,3979.5,3979.4,0.002]
[1761474676869,3.79548001,3979.5,3979.4,0.002]
[1761474678561,3.89468001,3979.5,3979.4,0.002]
[1761474678762,3.79548001,3979.5,3979.4,0.002]
[1761474680775,4.28424801,3979.5,3979.4,0.002]
[1761474683780,3.16300001,3979.5,3979.4,0.002]
[1761474684006,3.76928001,3979.5,3979.4,0.002]
[1761474684715,3.66988001,3979.5,3979.4,0.002]
[1761474686203,3.66988001,3979.5,3979.4,2.51494164]
[1761474693791,3.79548001,3979.5,3979.4,2.51494164]
[1761474694613,0.12560001,3979.5,3979.4,3.53610256]
[1761474694926,0.63248001,3979.5,3979.4,3.53610256]
[1761474698524,0.50688001,3979.5,3979.4,3.53610256]
[1761474702223,0.50688001,3979.5,3979.4,4.16858257]
[1761474702429,0.50688001,3979.5,3979.4,3.66170256]
[1761474705636,0.1266,3979.9,3979.4,3.66170256]
[1761474705637,0.001,3979.9,3979.5,0.98446501]
[1761474705800,0.101,3980.0,3979.5,0.98446501]
[1761474705801,0.001,3980.6,3980.1,4.06769968]
[1761474706132,0.001,3980.8,3980.6,2.51218409]
[1761474706334,0.001,3981.0,3980.9,2.51199477]
[1761474706568,0.001,3981.0,3980.9,5.69911471]
[1761474706737,0.001,3981.0,3980.9,6.13269477]
[1761474707113,0.001,3981.0,3980.9,6.23318503]
[1761474707328,0.001,3981.0,3980.9,7.51445404]
[1761474708963,0.001,3981.5,3981.1,4.28326857]
[1761474708964,1e-08,3981.2,3981.1,4.28326857]
[1761474709323,1e-08,3981.2,3981.1,7.90596857]
[1761474709527,1e-08,3981.2,3981.1,4.74196857]
[1761474709764,1e-08,3981.2,3981.1,8.85997575]
[1761474715562,1e-08,3981.2,3981.1,8.98557575]
[1761474715733,1e-08,3981.2,3981.1,8.52687575]
[1761474716067,1e-08,3981.2,3980.6,0.2162]
[1761474716243,1e-08,3981.2,3981.0,2.51187993]
[1761474716862,1e-08,3981.2,3981.1,2.51186857]
[1761474717252,1e-08,3981.2,3980.0,0.4587]
[1761474717253,0.50688,3981.1,3980.0,0.4587]
[1761474717456,0.50688,3981.1,3980.6,2.51212247]
[1761474717654,0.50688,3980.9,3980.6,2.51214496]
[1761474717883,0.50688,3980.7,3980.2,0.50788]
[1761474718165,0.50688,3980.7,3978.7,4.31644424]
[1761474718166,0.50688,3980.7,3980.3,2.51237343]
[1761474718377,0.50688,3980.7,3979.6,2.51275761]
[1761474718378,0.50688,3980.5,3980.4,2.51230764]
[1761474718537,0.60658,3980.5,3980.4,2.51230764]
[1761474719057,0.60658,3980.8,3980.4,2.51230764]
[1761474719459,0.0997,3980.7,3980.4,2.51230764]
[1761474720036,0.0997,3980.7,3980.5,2.5122329]
[1761474720231,0.0997,3980.7,3980.2,2.5124341]
[1761474720469,0.50688,3980.8,3980.6,2.51218045]
[1761474720774,0.50688,3981.1,3980.3,0.4587]
[1761474720950,0.50688,3981.1,3980.8,2.51204758]
[1761474721150,0.50688,3981.1,3980.4,0.4587]
[1761474721151,1e-08,3981.2,3980.6,2.51212557]
[1761474721352,1e-08,3981.2,3980.7,2.51211855]
[1761474721549,1e-08,3981.2,3980.6,2.51217567]
[1761474721754,0.50688,3981.0,3980.3,3.164]
[1761474721969,0.50688,3981.0,3980.5,2.51223489]
[1761474722279,0.50688,3980.8,3980.5,2.51223489]
[1761474722452,0.1161,3980.7,3980.3,3.164]
[1761474722657,0.1161,3980.7,3980.1,2.51443765]
[1761474722658,0.50688,3980.6,3980.1,0.002]
[1761474722959,0.50688,3980.6,3980.2,2.51241164]
[1761474722960,0.60588,3980.6,3980.2,2.51241164]
[1761474723149,0.60588,3980.6,3980.1,0.002]
[1761474723354,0.60588,3980.6,3980.1,2.5144856]
[1761474723552,0.50688,3980.4,3980.1,2.5144856]
[1761474723769,0.50688,3980.4,3980.2,2.51242684]
[1761474724860,0.50688,3980.4,3980.3,2.51237343]
[1761474725798,0.50688,3980.3,3980.1,0.002]
[1761474725948,0.48810108,3980.2,3980.1,0.002]
[1761474726145,4.25798108,3980.2,3980.1,0.002]
[1761474726351,6.77041764,3980.2,3980.1,0.002]
[1761474733401,6.87097384,3980.2,3980.1,0.002]
[1761474737118,8.42617384,3980.2,3980.1,0.002]
[1761474745240,5.26217384,3980.2,3980.1,0.002]
[1761474745404,8.42717384,3980.2,3980.1,0.002]
[1761474745603,5.30885728,3980.2,3980.1,0.002]
[1761474745915,8.42717384,3980.2,3980.1,0.002]
[1761474748110,5.26217384,3980.2,3980.1,0.002]
[1761474748314,8.42717384,3980.2,3980.1,0.002]
[1761474748837,5.26217384,3980.2,3980.1,0.002]
[1761474749000,8.42617384,3980.2,3980.1,0.002]
[1761474751743,8.96327392,3980.2,3980.1,0.002]
[1761474752718,8.42617384,3980.2,3980.1,0.002]
[1761474753347,8.96357475,3980.2,3980.1,0.002]
[1761474755948,8.86301855,3980.2,3980.1,0.002]
[1761474760034,4.57470594,3979.9,3979.8,0.002]
[1761474760252,9.94504568,3979.9,3979.8,0.002]
[1761474760457,10.04404568,3979.9,3979.8,0.002]
[1761474769161,10.71359051,3979.9,3979.8,0.002]
[1761474770584,10.04404568,3979.9,3979.8,0.002]
[1761474770778,10.71359051,3979.9,3979.8,0.002]
[1761474771389,10.04404568,3979.9,3979.8,0.002]
[1761474774102,9.94504568,3979.9,3979.8,0.002]
[1761474775080,6.78204568,3979.9,3979.8,0.002]
[1761474775272,2.21820091,3979.9,3979.8,0.4511]
[1761474775480,4.8438,3979.9,3979.8,0.4511]
[1761474775681,5.88808091,3979.9,3979.8,0.4511]
[1761474776082,8.40070685,3979.9,3979.8,0.4511]
[1761474776279,8.40070685,3979.9,3979.8,0.002]
[1761474776483,9.55898404,3979.9,3979.8,0.002]
[1761474778408,10.22852887,3979.9,3979.8,0.002]
[1761474778709,10.32752887,3979.9,3979.8,0.002]
[1761474780692,9.65798404,3979.9,3979.8,0.002]
[1761474781320,4.5749585,3979.5,3979.4,0.002]
[1761474781515,9.2751547,3979.5,3979.4,0.002]
[1761474781724,9.3741547,3979.5,3979.4,0.002]
[1761474781919,9.3741547,3979.5,3979.3,0.002]
[1761474781920,4.57502164,3979.4,3979.3,1e-08]
[1761474782228,5.21142255,3979.4,3979.3,1e-08]
[1761474782451,6.10872398,3979.4,3979.3,1e-08]
[1761474782596,2.51338376,3978.7,3978.3,0.002]
[1761474782941,8.27586467,3978.7,3978.3,0.002]
[1761474783233,8.37486467,3978.7,3978.3,0.002]
[1761474783405,9.04712193,3978.7,3978.3,0.002]
[1761474783611,9.04712193,3978.7,3977.8,0.00582507]